Cogmind - Beta 15 @@@ ROGUE MODE // 2025.07.28 @ 15:01:03 Player: Zoe Result: Destroyed by H-55 Commando with Gauss Rifle Performance ------------- Evolutions (2) 1000 Regions Visited (4) 800 Robots Destroyed (34) 170 Value Destroyed (890) 890 Prototype IDs (1) 20 Alien Tech Used (0) 0 Bonus (0) 0 TOTAL SCORE: 2880 Bonus ------- None Cogmind --------- Core Integrity 0/550 Matter 274/300 Energy 36/100 System Corruption 0% Temperature Cool (56) Movement Core (500) Ox9 Location -8/Materials Parts ------- > --- POWER (2) -------- (None) > --- PROPULSION (3) --- (None) > --- UTILITY (3) ------ Large Storage Unit > --- WEAPON (3) ------- Beam Rifle Beam Rifle Heavy Assault Rifle > --- INVENTORY (15) --- Ion Engine Ion Engine Light Ion Engine Light Treads Light Treads Aluminum Leg Small Storage Unit Beam Rifle Peak State ------------ > --- POWER ------------ Deuterium Engine Deuterium Engine > --- PROPULSION ------- Aluminum Leg Aluminum Leg Improved Aluminum Leg > --- UTILITY ---------- Large Storage Unit Improved Targeting Computer Sensor Drone Bay > --- WEAPON ----------- Heavy Assault Rifle Heavy Assault Rifle Katana > --- INVENTORY -------- Ion Engine Ion Engine Light Ion Engine Deuterium Engine Aluminum Leg Aluminum Leg Small Storage Unit Beam Rifle Beam Rifle Light Assault Rifle [Rating: 29] Favorites ----------- Power Deuterium Engine Engine Deuterium Engine Propulsion Aluminum Leg Treads Light Treads Leg Aluminum Leg Utility Large Storage Unit Device Sensor Drone Bay Storage Large Storage Unit Processor Improved Targeting Computer Weapon Assault Rifle Energy Gun Beam Rifle Ballistic Gun Assault Rifle Slashing Weapon Katana Build | -11 -10 -10 -9 -8 ------- Run | Yrd Mat Min Mat Mat Slots Evolved 4 | . . . 2 2 Power 1 | . . . . 1 Propulsion 1 | . . . 1 . Utility 1 | . . . 1 . Weapon 1 | . . . . 1 Parts Attached 34 | 6 5 1 8 14 Power 5 | 1 1 . . 3 Engine 5 | 1 1 . . 3 Core . | . . . . . Reactor . | . . . . . Propulsion 14 | 2 2 . 5 5 Treads 2 | 2 . . . . Leg 12 | . 2 . 5 5 Wheel . | . . . . . Hover . | . . . . . Flight . | . . . . . Utility 5 | 2 1 1 1 . Device 2 | 1 . 1 . . Storage 2 | 1 1 . . . Processor 1 | . . . 1 . Hackware . | . . . . . Protection . | . . . . . Artifact . | . . . . . Weapon 10 | 1 1 . 2 6 Energy Gun 2 | . . . . 2 Energy Cannon . | . . . . . Ballistic Gun 7 | 1 1 . 2 3 Ballistic Cannon . | . . . . . Launcher . | . . . . . Special Weapon . | . . . . . Impact Weapon . | . . . . . Slashing Weapon 1 | . . . . 1 Piercing Weapon . | . . . . . Special Melee Weapon . | . . . . . Unidentified Prototypes 1 | . . 1 . . Parts Lost 15 | . 1 . 1 13 Power 4 | . 1 . . 3 Propulsion 3 | . . . . 3 Utility 2 | . . . . 2 Weapon 6 | . . . 1 5 Highest Loss Streak 11 | . 1 . 1 11 To Critical Strikes . | . . . . . Average Backups 8 | 3 6 7 9 9 Power 2 | . 1 1 1 3 Propulsion 2 | 1 3 4 3 1 Utility 1 | . . 1 1 1 Weapon 2 | 1 1 1 2 2 Tool/Special . | . . . . . Unused Backups 4 | . . . . 4 Power 3 | . . . . 3 Propulsion . | . . . . . Utility . | . . . . . Weapon 1 | . . . . 1 Tool/Special . | . . . . . Average Slot Usage (%) 94 | . 90 100 99 90 Engine 13 | . 12 14 11 16 Treads 1 | . 11 . . . Leg 27 | . 16 28 33 24 Device 12 | . 14 14 14 8 Storage 11 | . 14 14 11 9 Processor 5 | . . . 7 8 Ballistic Gun 20 | . 20 28 21 16 Slashing Weapon 2 | . . . . 5 Peak Build Rating 29 | 8 9 15 21 29 Average Rating 18 | 4 8 13 19 25 On Entrance 10 | . 8 9 15 21 Naked Turns . | . . . . . Heaviest Build 58 | 11 30 43 45 58 Greatest Support 40 | 40 40 20 33 33 Greatest Overweight (x) 10 | . 1 2 1 10 Average Overweight (x) 1 | . . 1 1 1 Largest Inventory Capacity 15 | 8 15 15 15 15 Average Capacity 14 | 7 14 15 15 15 Most Carried 12 | 6 9 8 12 12 Average Carried 8 | 3 6 7 9 9 Final Capacity 15 | 8 15 15 15 15 Final Carried 11 | 5 7 8 11 8 Class Distribution -------------------- 77% | Mutant 22% | Scavenger-Mutant Dominant Class ---------------- Mutant | -10/Materials Mutant | -10/Mines Mutant | -9/Materials Mutant | -8/Materials Resources | -11 -10 -10 -9 -8 ----------- Run | Yrd Mat Min Mat Mat Matter Collected 1018 | 275 95 37 322 289 Remotely . | . . . . . Salvage Created 1253 | 126 113 . 605 409 Parts 101 | 12 5 . 55 29 Haulers Intercepted 1 | . . . 1 . Recyclers Shooed . | . . . . . Parts Field Recycled . | . . . . . Retrieved Matter . | . . . . . Parts Self-Destructed . | . . . . . Prevented . | . . . . . Kills | -11 -10 -10 -9 -8 ------- Run | Yrd Mat Min Mat Mat Combat Hostiles Destroyed 26 | . 2 . 15 9 Guns 26 | . 2 . 15 9 Classes Destroyed 8 | 2 2 . 3 1 Tunneler 2 | 2 . . . . Hauler 1 | . . . 1 . Recycler 2 | 1 . . . 1 Watcher 3 | . 1 . 2 . Swarmer 8 | . . . 5 3 Grunt 13 | . 2 . 8 3 Duelist 1 | . . . . 1 Sentry 4 | . . . 2 2 Best Kill Streak 4 | 3 2 . 4 2 Combat Bots Only 4 | . 2 . 4 2 Max Kills in Single Turn 1 | 1 1 . 1 1 Gunslinging . | . . . . . Exploded . | . . . . . Melee . | . . . . . Uniques/NPCs Destroyed . | . . . . . Combat | -11 -10 -10 -9 -8 -------- Run | Yrd Mat Min Mat Mat Hostile Shots Fired 284 | . 32 . 60 192 Missed 58 | . 8 . 18 32 Hits 226 | . 24 . 42 160 Melee 7 | . . . . 7 Projectile 219 | . 24 . 42 153 Critical Strikes 8 | . 2 . . 6 Damage Taken 2967 | . 322 . 495 2150 Core 664 | . 39 . 74 551 Absorbed by Shields . | . . . . . Core Remaining (%) 88 | 100 . 84 81 . Volleys Fired 134 | 5 17 . 40 72 Largest 3 | 1 2 . 2 3 Hottest 135 | 20 40 . 46 135 Shots Fired 232 | 5 19 . 79 129 Gun 232 | 5 19 . 79 129 Cannon . | . . . . . Launcher . | . . . . . Special . | . . . . . Kinetic 215 | 5 19 . 79 112 Thermal 17 | . . . . 17 Explosive . | . . . . . Electromagnetic . | . . . . . Robot Hit Streak 21 | 4 7 . 10 21 Robot Miss Streak 4 | 1 3 . 2 4 Penetration Max . | . . . . . Secondary Targets 1 | . . . . 1 Max Gunslinging Chain 1 | . . . . 1 Shots Hit Robots 167 | 4 12 . 53 98 Core Hits 67 | 4 6 . 28 29 Critical Kills 1 | . 1 . . . Critical Parts Destroyed 3 | . . . . 3 Critical Strikes 7 | . 1 . . 6 Burn 3 | . . . . 3 Destroy 4 | . 1 . . 3 Melee Attacks . | . . . . . Impact . | . . . . . Slashing . | . . . . . Piercing . | . . . . . Sneak Attacks . | . . . . . Combat Hostiles . | . . . . . Follow-up Attacks . | . . . . . Damage Inflicted 2029 | 57 151 . 663 1158 Guns 2029 | 57 151 . 663 1158 Cannons . | . . . . . Explosions . | . . . . . Melee . | . . . . . Ramming . | . . . . . Kinetic 1872 | 57 151 . 663 1001 Thermal 157 | . . . . 157 Explosive . | . . . . . Electromagnetic . | . . . . . Impact . | . . . . . Slashing . | . . . . . Piercing . | . . . . . Highest Corruption 4 | . . . 4 . Average Corruption 3 | . . . 3 . Corruption Purged . | . . . . . Corruption Blocked . | . . . . . Effects 2 | . . . 2 . Message Errors 1 | . . . 1 . Energy Discharges 1 | . . . 1 . Overload Shots . | . . . . . Overflow Damage . | . . . . . Projectiles . | . . . . . Explosions . | . . . . . Melee . | . . . . . Knockbacks . | . . . . . Impact . | . . . . . Kinetic . | . . . . . Secondary . | . . . . . Self-Inflicted Damage . | . . . . . Shots . | . . . . . Rammed . | . . . . . Targets Rammed . | . . . . . Kicked . | . . . . . Crushed . | . . . . . Highest Temperature 235 | . 18 . . 235 Average Temperature 47 | . 10 . . 49 Received Heat Transfer 1086 | . 216 . 195 675 Siege Activations . | . . . . . Martial Activations . | . . . . . Shielding Activations . | . . . . . Robots Disrupted . | . . . . . Combat Hostiles . | . . . . . Robots Corrupted . | . . . . . Combat Hostiles . | . . . . . Parts Fried . | . . . . . Impact Corruptions . | . . . . . Robots Melted . | . . . . . Combat Hostiles . | . . . . . Parts Melted . | . . . . . Heat Transferred 629 | . . . . 629 Parts Sabotaged . | . . . . . Parts Stolen . | . . . . . Parts Stripped . | . . . . . Power Chain Reactions . | . . . . . Alert | -11 -10 -10 -9 -8 ------- Run | Yrd Mat Min Mat Mat Maximum Alert Level . | . . . . . Low Security (%) 100 | 100 100 100 100 100 Level 1 . | . . . . . Level 2 . | . . . . . Level 3 . | . . . . . Level 4 . | . . . . . Level 5 . | . . . . . High Security . | . . . . . Max Security . | . . . . . Peak Influence 162 | 10 50 . 162 75 Initial 9 | . . . . 9 Average 29 | 1 7 . 61 19 Influence Increases 813 | 15 57 . 415 326 Destroy 0b10 Robot/C 520 | . 40 . 300 180 Destroy 0b10 Robot/NC 40 | 15 5 . 15 5 Destroy Leader 128 | . 12 . 66 50 Allied During Kill 3 | . . . 3 . Destroy Structure 2 | . . . 1 1 Partial Spotted 15 | . . . . 15 Lose Combat Pursuer 105 | . . . 30 75 Influence Decreases 813 | 15 57 . 391 350 Entered New Map 15 | . . . . 15 Time Decay 696 | 15 57 . 372 252 Lost Part 92 | . . . 9 83 Lost Ally 10 | . . . 10 . Squads Dispatched 3 | . 1 . 1 1 Investigation . | . . . . . Extermination . | . . . . . Reinforcement 3 | . 1 . 1 1 Assault . | . . . . . Garrison . | . . . . . Intercept . | . . . . . Searches Triggered . | . . . . . Construction Impeded . | . . . . . Haulers Reinforced . | . . . . . Active Scanning Responses . | . . . . . Cargo Convoy Interrupts . | . . . . . Stealth | -11 -10 -10 -9 -8 --------- Run | Yrd Mat Min Mat Mat Distress Signals 6 | . 1 . 1 4 Communications Jammed . | . . . . . Distress Signals . | . . . . . Times Spotted 53 | . 9 . 23 21 Peak Tracking Total 5 | . 3 . 5 5 Tactical Retreats 4 | . . . 1 3 Traps | -11 -10 -10 -9 -8 ------- Run | Yrd Mat Min Mat Mat Traps Triggered 2 | . . . 2 . Indirectly . | . . . . . Trap Hack Attempts . | . . . . . Triggered . | . . . . . Disarmed . | . . . . . Reprogrammed . | . . . . . Reused . | . . . . . Traps Extracted . | . . . . . Installed . | . . . . . Triggered . | . . . . . Machines | -11 -10 -10 -9 -8 ---------- Run | Yrd Mat Min Mat Mat Machines Disabled . | . . . . . Max in Single Turn . | . . . . . Machines Repaired . | . . . . . Machines Dismantled . | . . . . . Machines Sabotaged . | . . . . . Overloaded Fab Kills . | . . . . . Hacking | -11 -10 -10 -9 -8 --------- Run | Yrd Mat Min Mat Mat Machines Accessed 1 | . . 1 . . Terminals . | . . . . . Fabricators . | . . . . . Repair Stations . | . . . . . Recycling Units . | . . . . . Scanalyzers . | . . . . . Garrison Access . | . . . . . Total Hacks 1 | . . 1 . . Successful 1 | . . 1 . . Failed . | . . . . . Catastrophic . | . . . . . Database Lockouts . | . . . . . Manual . | . . . . . Terminals . | . . . . . Fabricators . | . . . . . Repair Stations . | . . . . . Recycling Units . | . . . . . Scanalyzers . | . . . . . Garrison Access . | . . . . . Terminal Hacks 1 | . . 1 . . Open Door 1 | . . 1 . . Fabricator Hacks . | . . . . . Repair Station Hacks . | . . . . . Recycling Unit Hacks . | . . . . . Scanalyzer . | . . . . . Garrison Access Hacks . | . . . . . Unauthorized Hacks . | . . . . . Terminals . | . . . . . Fabricators . | . . . . . Repair Stations . | . . . . . Recycling Units . | . . . . . Scanalyzers . | . . . . . Garrison Access . | . . . . . Data Cores Recovered . | . . . . . Used . | . . . . . Hacking Detections . | . . . . . Full Trace Events . | . . . . . Feedback Events . | . . . . . Feedback Blocked . | . . . . . Robot Schematics Acquired . | . . . . . Robots Built . | . . . . . Authchips . | . . . . . Time . | . . . . . Total Robot Build Rating . | . . . . . Part Schematics Acquired . | . . . . . Parts Built . | . . . . . Authchips . | . . . . . Time . | . . . . . Total Part Build Rating . | . . . . . Parts Repaired . | . . . . . Time . | . . . . . Parts Recycled . | . . . . . Recycled Matter . | . . . . . Retrieved Matter . | . . . . . Retrieved Components . | . . . . . Parts Scanalyzed . | . . . . . Part Schematics Acquired . | . . . . . Parts Damaged . | . . . . . Bothacking | -11 -10 -10 -9 -8 ------------ Run | Yrd Mat Min Mat Mat Used RIF Installer . | . . . . . Robots Hacked . | . . . . . Non-combat . | . . . . . Combat . | . . . . . Robot Hacks Applied . | . . . . . Relay Couplers Released . | . . . . . Fabnet Peak Effective % . | . . . . . Robots Rewired . | . . . . . Allies Hacked . | . . . . . Hacks Repelled . | . . . . . Allies | -11 -10 -10 -9 -8 -------- Run | Yrd Mat Min Mat Mat Total Allies . | . . . . . Largest Group . | . . . . . Highest-Rated Group . | . . . . . Highest-Rated Ally . | . . . . . Total Orders . | . . . . . Ally Attacks . | . . . . . Total Damage . | . . . . . Kills . | . . . . . Allies Corrupted . | . . . . . Allies Melted . | . . . . . Intel | -11 -10 -10 -9 -8 ------- Run | Yrd Mat Min Mat Mat Active Infowar (turns) 733 | 7 340 68 318 . Terrain 733 | 7 340 68 318 . Robot Analysis Total . | . . . . . Derelict Logs Recovered 1 | . . 1 . . Drone Launches 51 | . . 20 27 4 Drone Recoveries 49 | . . . 44 5 Exploration | -11 -10 -10 -9 -8 ------------- Run | Yrd Mat Min Mat Mat Turns Passed 2671 | 80 340 327 942 982 Spaces Moved 789 | 40 160 128 297 164 Core 17 | 9 . . . 8 Treads 88 | 31 57 . . . Legs 684 | . 103 128 297 156 Wheels . | . . . . . Hover . | . . . . . Flight . | . . . . . Fastest Speed 50 | 50 160 190 190 190 Average Speed 195 | 135 179 241 190 201 Slowest Speed 550 | 160 190 260 190 550 Overloaded Moves . | . . . . . Propulsion Burnouts . | . . . . . Robots Hopped . | . . . . . Potential Cave-ins . | . . . . . Cave-ins Triggered . | . . . . . Exploration Rate (%) 23 | 3 37 22 37 16 Regions Visited 4 Branch Regions 1 Pre-discovered Areas 1 | . . 1 . . Known Exits Taken 2 | . . 1 1 . Unknown Exits Taken 2 | 1 1 . . . Scrap Searched 1 | . . 1 . . Spaces Dug . | . . . . . Terrain Destroyed . | . . . . . Melee . | . . . . . Projectile . | . . . . . AOE . | . . . . . Terrain Rammed . | . . . . . Walls Destroyed . | . . . . . Machines Disabled . | . . . . . Actions | -11 -10 -10 -9 -8 --------- Run | Yrd Mat Min Mat Mat Total 1698 | 61 193 145 596 703 Wait 685 | . 8 12 233 432 Move 785 | 39 159 127 296 164 Hop . | . . . . . Pick Up 40 | 11 4 1 12 12 Fast Attach . | . . . . . Attach 19 | 6 2 . 3 8 Detach . | . . . . . Swap 20 | . 3 3 6 8 Drop 13 | . . . 6 7 Fire 134 | 5 17 . 40 72 Melee . | . . . . . Ram . | . . . . . Kick . | . . . . . Crush . | . . . . . Escape Stasis . | . . . . . Rewire 2 | . . 2 . . Trap . | . . . . . Miscellaneous . | . . . . . Route ------- -11/Scrapyard -10/Materials -10/Mines -9/Materials (discovered 2 exits: *Mat / *Min) -8/Materials History --------- Turn | Location | Event 40 | -11/Scrapyard | Discovered new exit (range 12) 81 | -11/Scrapyard | Entered Materials 313 | -10/Materials | Build established: Mutant 396 | -10/Materials | Discovered new exit (range 13) 421 | -10/Materials | Entered Mines 476 | -10/Mines | Found the Drone Emporium 484 | -10/Mines | Found Prototype Device 485 | -10/Mines | Identified Sensor Drone Bay 710 | -10/Mines | Learned location of Storage (-7) 720 | -10/Mines | Discovered new exit (range 6) 731 | -10/Mines | Identified exit to Materials 748 | -10/Mines | Entered Materials 748 | -9/Materials | Accompanied by 19 allies 748 | -9/Materials | Evolved 2 slots: Propulsion x1, Utility x1 1342 | -9/Materials | Discovered new exit (range 17) 1372 | -9/Materials | Identified exit to Mines 1649 | -9/Materials | Discovered new exit (range 16) 1682 | -9/Materials | Identified exit to Materials 1690 | -9/Materials | Entered another Materials area 1690 | -8/Materials | Accompanied by 1 ally 1690 | -8/Materials | Evolved 2 slots: Power x1, Weapon x1 1816 | -8/Materials | Build established: Scavenger-Mutant 2220 | -8/Materials | Build established: Mutant 2593 | -8/Materials | Core integrity fell below 50% 2617 | -8/Materials | Core integrity fell below 20% 2640 | -8/Materials | Lost 11 parts (3p3n2u3w) 2672 | -8/Materials | Destroyed by H-55 Commando with Gauss Rifle Last Messages --------------- G-47 Trooper overheating. Y-45 Defender destroyed. G-47 Trooper heat damages Aluminum Leg. K-01 Serf collects debris. Acquired 28 matter. G-47 Trooper overheating. G-47 Trooper heat damages Aluminum Leg. Penetrated by Slug. G-47 Trooper destroyed. K-01 Serf collects debris. H-55 Commando suffers critical hit (Burn). Penetrated by Slug. K-01 Serf collects debris. H-55 Commando suffers critical hit (Burn). Acquired Lgt. Treads. Acquired Hvy. Assault Rifle. Slug penetrates Wall. R-06 Scavenger collects Heat Sink. Acquired Beam Rifle. H-55 Commando suffers critical hit (Burn). Map ----- +----------------------------------------------------+ | ?????????????????????????????????????????????????? | | ?????????????????????????????????????????????????? | | ?????????????????????????????????????????????????? | | ?????????????????????????????????????????????????? | | ?????????????????????????????????????????????????? | | ?????????????????????????????????????????????????? | | ?????????????????????????????????????????????????? | | ?????????????????????????????????????????????????? | | ?????????????????? ?????????????????????????????? | | ?????????????????? ?????????????????????????????? | | ??????????????????#+?????????????????????????????? | | ??????????????????# ?????????????????????????????? | | ???? ???????????# ?????????????????????????????? | | ???# ???????????# ####################?????????? | | ???# ???????????# +?????????? | | #??# ???????????# #?????????? | | ? ?# ???????????# #?????????? | | ? ?# ???????????+ +?????????? | | ?? # #??????????# ###### #######?????????????? | | ?? # #??????????# # # #???????????????????? | | ???+ #??????????# # # #???????????????????? | | ???# #??????????# # #u#???????????????????? | | ???# #??????????# # !#u########????????????? | | ???# ############ # %%h[! +????????????? | | ???# # #= ####?????????????? | | ???# # @ # #????????????????? | | ???# # %!%+ #????????????????? | | ???# # #### #????????????????? | | ???# ######??? #????????????????? | | ???# ############ ###???????? #????????????????? | | #### #??????????# #???????????#????????????????? | | = # #??????????# #????????????????????????????? | | !# #??????????# #????????????????????????????? | | # #??????????# #????????????????????????????? | | ! #% #??????????# #????????????????????????????? | | +% ########### ????????????????????????????? | | " # # = # ????????????????????????????? | | " # # # ]????????????????????????????? | | " # # !! ## #????????????????????????????? | | # # ! #? ?????????????????????????????? | | # ## + + #????????????????????????????? | | #### # #???????????????????????????????? | | ???# # #???????????????????????????????? | | ???# # #???????????????????????????????? | | #### ###########???????????????????????????????? | | # #?????????????????????????????????????????? | | # #?????????????????????????????????????????? | | # #?????????????????????????????????????????? | | # #?????????????????????????????????????????? | | !+ ###########???????????????????????????????? | +----------------------------------------------------+ Best States ------------- Heat Dissipation 31 Energy Generation 23 Energy Capacity 450 Matter Stores 300 Matter Capacity 300 Sight Range 16 Terrain Scan Range 16 Terrain Scan Density 10 Evasion (%) 40 Targeting Accuracy 6 Recoil Reduction 2 Item Schematics ----------------- None Robot Schematics ------------------ None Fabricated ------------ Nothing Repaired ---------- Nothing Alien Tech Used ----------------- None Achievements -------------- None Challenges ------------ None Game ------ Seed GyrokineticCloakRipper Manual? 0 Play Time 00:22:25 Cumulative 13.3 hours Start 2025.07.28 @ 14:32:19 End 2025.07.28 @ 15:01:03 Sessions 1 Manual Loads 0 Difficulty Rogue Special Mode None Game No. 27 Rogue 24 Adventurer 3 Explorer 0 Win Type - Total 0 Types 0/0/0/0/0/0/0/0/0/0 Lore% 10 Gallery% 16 Achievement% 16 Wizard Run 0 Options --------- Layout 1 ASCII 0 Keyboard 0 Movement Mouse Keybinds 0 Fullscreen 1 Font 24/Smallcaps Map View 50x35 Zoom Use 0% Tactical HUD 0 Map Filters NONE Filters NONE Steam 1 RUN: 7be2a576-2ed9-4bb2-b187-dd78bb1ae58b